fUSD/lending_fUSD_20240425
["ID","MTS","AMOUNT","RATE_DAILY","PERIOD"]
[323531723,1714073447104,-1017.29,0.0001178,2]
[323531724,1714073447114,-3833.55,0.0001178,2]
[323531725,1714073447123,-725.02,0.0001178,2]
[323531726,1714073447133,-500.0,0.0001178,2]
[323531727,1714073447142,-2357.49,0.0001178,2]
[323531728,1714073447153,-821.01,0.0001178,2]
[323531729,1714073447188,-582.13,0.0001178,2]
[323531730,1714073447197,-780.48,0.0001178,2]
[323531731,1714073447207,-1123.82,0.0001178,2]
[323531732,1714073447216,-1002.32,0.0001178,2]
[323531733,1714073447225,-738.0,0.0001178,2]
[323531734,1714073447235,-851.92,0.0001178,2]
[323531735,1714073447244,-2702.52,0.0001178,2]
[323531736,1714073447253,-500.0,0.0001178,2]
[323531737,1714073447262,-544.5,0.0001178,2]
[323531738,1714073447273,-523.92,0.0001178,2]
[323531739,1714073447283,-733.61,0.0001178,2]
[323531740,1714073447293,-685.57,0.0001178,2]
[323531741,1714073447302,-500.0,0.0001178,2]
[323531742,1714073447311,-584.55,0.0001178,2]
[323531743,1714073447322,-500.0,0.0001178,2]
[323531744,1714073447331,-639.54,0.0001178,2]
[323531745,1714073447340,-500.0,0.0001178,2]
[323531746,1714073447350,-1393.09,0.0001178,2]
[323531747,1714073447361,-762.51,0.0001178,2]
[323531748,1714073447370,-872.92,0.0001178,2]
[323531749,1714073447380,-500.0,0.0001178,2]
[323531750,1714073447389,-622.54729976,0.0001178,2]
[323531751,1714073447399,-769.31,0.0001178,2]
[323531752,1714073447409,-2544.39,0.0001178,2]
[323531753,1714073447418,-551.51,0.0001178,2]
[323531754,1714073447428,-547.72,0.0001178,2]
[323531755,1714073447437,-737.98,0.0001178,2]
[323531756,1714073447447,-2577.82,0.0001178,2]
[323531757,1714073447457,-1100.87,0.0001178,2]
[323531758,1714073447467,-500.0,0.0001178,2]
[323531759,1714073447476,-5637.12,0.0001178,2]
[323531760,1714073447486,-1958.87,0.0001178,2]
[323531761,1714073447496,-612.06,0.0001178,2]
[323531762,1714073447507,-1921.24,0.0001178,2]
[323531763,1714073447516,-500.0,0.0001178,2]
[323531764,1714073447526,-694.86,0.0001178,2]
[323531765,1714073447536,-1048.39,0.0001178,2]
[323531766,1714073447547,-551.74,0.0001178,2]
[323531767,1714073447556,-500.0,0.0001178,2]
[323531768,1714073447566,-845.29,0.0001178,2]
[323531769,1714073447576,-3394.38,0.0001178,2]
[323531770,1714073447586,-1231.98,0.0001178,2]
[323531771,1714073447595,-721.19,0.0001178,2]
[323531772,1714073447605,-1260.73,0.0001178,2]
[323531773,1714073447615,-500.0,0.0001178,2]
[323531774,1714073447626,-500.0,0.0001178,2]
[323531775,1714073447636,-518.95,0.0001178,2]
[323531776,1714073447645,-500.0,0.0001178,2]
[323531777,1714073447655,-1441.67,0.0001178,2]
[323531778,1714073447664,-578.04,0.0001178,2]
[323531779,1714073447675,-1786.41,0.0001178,2]
[323531780,1714073447684,-532.2,0.0001178,2]
[323531781,1714073447695,-887.92,0.0001178,2]
[323531782,1714073447706,-629.85,0.0001178,2]
[323531783,1714073447716,-1441.08,0.0001178,2]
[323531784,1714073447725,-500.0,0.0001178,2]
[323531785,1714073447735,-500.0,0.0001178,2]
[323531786,1714073447746,-1352.96,0.0001178,2]
[323531787,1714073447756,-500.0,0.0001178,2]
[323531788,1714073447766,-2326.45,0.0001178,2]
[323531789,1714073447777,-1065.0,0.0001178,2]
[323531790,1714073447787,-654.03,0.0001178,2]
[323531791,1714073447799,-4430.52,0.0001178,2]
[323531792,1714073447809,-3174.85,0.0001178,2]
[323531793,1714073447819,-1552.32,0.0001178,2]
[323531794,1714073447828,-500.0,0.0001178,2]
[323531795,1714073447839,-520.39,0.0001178,2]
[323531796,1714073447848,-651.74,0.0001178,2]
[323531797,1714073447857,-843.13,0.0001178,2]
[323531798,1714073447866,-640.16,0.0001178,2]
[323531799,1714073447876,-942.48,0.0001178,2]
[323531800,1714073447885,-816.8,0.0001178,2]
[323531801,1714073447894,-4724.68,0.0001178,2]
[323531802,1714073447903,-500.0,0.0001178,2]
[323531803,1714073447912,-500.0,0.0001178,2]
[323531804,1714073447923,-163.2419775,0.0001178,2]
[323531805,1714073447932,-1198.91,0.0001178,2]
[323531806,1714073447942,-517.47,0.0001178,2]
[323531807,1714073447954,-153.51880162,0.000118,2]
[323531808,1714073447963,-4633.31675167,0.000118,2]
[323531809,1714073447972,-4633.31675167,0.0001182,2]
[323531810,1714073447981,-4633.31675167,0.0001184,2]
[323531811,1714073447990,-4633.31675167,0.0001186,2]
[323531812,1714073447999,-4633.31675167,0.0001188,2]
[323531813,1714073448009,-1171.72148,0.0001188,2]
[323531814,1714073448019,-787.08726309,0.00011899,2]
[323531815,1714073448028,-4633.31675167,0.000119,2]
[323531816,1714073448037,-169.9775808,0.000119,2]
[323531817,1714073448046,-1000.0,0.00011903,2]
[323531818,1714073448056,-500.0,0.00011903,2]
[323531819,1714073448067,-1000.0,0.00011904,2]
[323531820,1714073448076,-500.0,0.00011904,2]
[323531821,1714073448085,-610.0,0.00011918,2]
[323531822,1714073448095,-807.0,0.00011918,2]
[323531823,1714073448105,-437.0,0.00011918,2]
[323531824,1714073448113,-258.0,0.00011918,2]
[323531825,1714073448122,-1859.0,0.00011918,2]
[323531826,1714073448131,-330.0,0.00011918,2]
[323531827,1714073448141,-1593.207,0.00011918,2]
[323531828,1714073448150,-214.0,0.00011918,2]
[323531829,1714073448158,-443.0,0.00011918,2]
[323531830,1714073448167,-1120.0,0.00011918,2]
[323531831,1714073448176,-3568.13,0.00011918,2]
[323531832,1714073448185,-31973.43,0.00011918,2]
[323531833,1714073448194,-2706.0,0.00011918,2]
[323531834,1714073448205,-5895.0,0.00011918,2]
[323531835,1714073448216,-462.0,0.00011918,2]
[323531836,1714073448225,-970.0,0.00011918,2]
[323531837,1714073448234,-2296.0,0.00011918,2]
[323531838,1714073448242,-1394.0,0.00011918,2]
[323531839,1714073448251,-159.56743062,0.00011918,2]
[323531840,1714073448260,-9721.15543186,0.00011998,2]
[323531841,1714073448270,-3000.22784039,0.00011998,2]
[323531842,1714073448283,-192.56707976,0.00011998,2]
[323531843,1714073448292,-3080.15233842,0.00011998,2]
[323531844,1714073448302,-1993.92102893,0.00011998,2]
[323531845,1714073448311,-967.19043138,0.00011998,2]
[323531846,1714073448320,-1807.98454635,0.00011999,2]
[323531847,1714073448329,-267488.73122761,0.00012,2]
[323531848,1714073448346,-4816.28153664,0.00012,2]
[323531849,1714073448357,-2596.15539632,0.00012,2]
[323531850,1714073448369,-44211.29876632,0.00012,2]
[323531851,1714073448383,-13344.577824,0.00012,2]
[323531852,1714073448395,-18577.97442883,0.00012,2]
[323531853,1714073448405,-2268.25408316,0.00012,2]
[323531855,1714073448847,-500.0,0.00010958,2]
[323531856,1714073448856,-97.75696942,0.00012,2]
[323531857,1714073448868,-33205.80003,0.00012,2]
[323531858,1714073448891,-500.0,0.00011232,2]
[323531859,1714073448900,-1527.91478928,0.00012,2]
[323531860,1714073448912,-989.38431379,0.00012,2]
[323531861,1714073448923,-7821.01570482,0.00012,2]
[323531862,1714073448936,-265.1286,0.00012,2]
[323531863,1714073448947,-2051.44508332,0.00012,2]
[323531864,1714073448959,-929.54353632,0.00012,2]
[323531865,1714073448970,-278.20118322,0.00012,2]
[323531866,1714073448981,-294.59000034,0.00012,2]
[323531867,1714073448993,-607.21348402,0.00012,2]
[323531868,1714073449019,-36657.06576256,0.00012,2]
[323531869,1714073449029,-4316.5918931,0.00012,2]
[323531870,1714073449041,-771.54419565,0.00012,2]
[323531871,1714073449052,-425.6559996,0.00012,2]
[323531872,1714073449063,-531.14237959,0.00012,2]
[323531873,1714073449074,-3884.62771893,0.00012,2]
[323531874,1714073449324,-417.95220767,0.00010958,2]
[323531875,1714073449336,-82.04779233,0.00010958,2]
[323531876,1714073449347,-557.01,0.00011506,2]
[323531877,1714073449357,-2334.93114073,0.00012,2]
[323531878,1714073449369,-464.03,0.00012,2]
[323531879,1714073449380,-481.2146,0.00012,2]
[323531880,1714073449391,-987.596933,0.00012,2]
[323531881,1714073449403,-74038.35465705,0.00012,2]
[323531882,1714073449414,-9193.8869666,0.00012,2]
[323531883,1714073449425,-1995.44967921,0.00012,2]
[323531884,1714073449438,-2255.72296,0.00012,2]
[323531887,1714073614302,1236.19,8.465e-05,2]
[323531889,1714073751410,-1000.0,0.00024963,30]
[323531890,1714073751436,-652.4,0.00024963,30]
[323531891,1714073751465,-1000.0,0.00024963,60]
[323531892,1714073751490,-1000.0,0.00024963,30]
[323531893,1714073751515,-2000.0,0.00024963,30]
[323531894,1714073751540,-2000.0,0.00024963,30]
[323531895,1714073751564,-2000.0,0.00024963,30]
[323531896,1714073751589,-2000.0,0.00024963,30]
[323531897,1714073751613,-2000.0,0.00024963,30]
[323531898,1714073751637,-2000.0,0.00024963,30]
[323531899,1714073751661,-2000.0,0.00024963,30]
[323531900,1714073751685,-2000.0,0.00024963,30]
[323531901,1714073751712,-2000.0,0.00024963,30]
[323531902,1714073751737,-2000.0,0.00024963,30]
[323531903,1714073751763,-2000.0,0.00024963,30]
[323531904,1714073751789,-2000.0,0.00024963,30]
[323531905,1714073751813,-2000.0,0.00024963,30]
[323531906,1714073751838,-2000.0,0.00024963,30]
[323531907,1714073751862,-2000.0,0.00024963,30]
[323531908,1714073751886,-2000.0,0.00024963,30]
[323531909,1714073751911,-2000.0,0.00024963,30]
[323531910,1714073751936,-2000.0,0.00024963,30]
[323531911,1714073751964,-1000.0,0.00024963,30]
[323531912,1714073751989,-2000.0,0.00024963,30]
[323531913,1714073752014,-2000.0,0.00024963,30]
[323531914,1714073752040,-2000.0,0.00024963,30]
[323531915,1714073752065,-2000.0,0.00024963,30]
[323531916,1714073752090,-2000.0,0.00024963,30]
[323531917,1714073752115,-2000.0,0.00024963,30]
[323531918,1714073752139,-2000.0,0.00024963,30]
[323531919,1714073752164,-2000.0,0.00024963,30]
[323531920,1714073752188,-2000.0,0.00024963,30]
[323531921,1714073752212,-2000.0,0.00024963,30]
[323531922,1714073752235,-2000.0,0.00024963,30]
[323531923,1714073752260,-2000.0,0.00024963,30]
[323531924,1714073752284,-2000.0,0.00024963,30]
[323531925,1714073752307,-2000.0,0.00024963,30]
[323531926,1714073752331,-2000.0,0.00024963,30]
[323531927,1714073752360,-2000.0,0.00024963,30]
[323531928,1714073752385,-2000.0,0.00024963,30]
[323531929,1714073752409,-2000.0,0.00024963,30]
[323531930,1714073752434,-2000.0,0.00024963,30]
[323531931,1714073752461,-2000.0,0.00024963,30]
[323531932,1714073752485,-2000.0,0.00024963,30]
[323531933,1714073752509,-2000.0,0.00024963,30]
[323531934,1714073752532,-2000.0,0.00024963,30]
[323531935,1714073752786,-2000.0,0.00024963,30]
[323531936,1714073752812,-1000.0,0.00024963,30]
[323531937,1714073752836,-2000.0,0.00024963,30]
[323531938,1714073752860,-2000.0,0.00024963,30]
[323531939,1714073752885,-2000.0,0.00024963,30]
[323531940,1714073752908,-2000.0,0.00024963,30]
[323531941,1714073752935,-2000.0,0.00024963,30]
[323531942,1714073752960,-2000.0,0.00024963,30]
[323531943,1714073752987,-2000.0,0.00024963,30]
[323531944,1714073753012,-2000.0,0.00024963,30]
[323531945,1714073753037,-2000.0,0.00024963,30]
[323531946,1714073753062,-2000.0,0.00024963,30]
[323531947,1714073753087,-2000.0,0.00024963,30]
[323531948,1714073753111,-2000.0,0.00024963,30]
[323531949,1714073753134,-2000.0,0.00024963,30]
[323531950,1714073753160,-2000.0,0.00024963,30]
[323531951,1714073753185,-2000.0,0.00024963,30]
[323531952,1714073753209,-2000.0,0.00024963,30]
[323531953,1714073753236,-2000.0,0.00024963,30]
[323531954,1714073753261,-2000.0,0.00024963,30]
[323531955,1714073753286,-2000.0,0.00024963,30]
[323531956,1714073753311,-2000.0,0.00024963,30]
[323531957,1714073753337,-2000.0,0.00024963,30]
[323531958,1714073753362,-2000.0,0.00024963,30]
[323531959,1714073753390,-2000.0,0.00024963,30]
[323531960,1714073753414,-2000.0,0.00024963,30]
[323531961,1714073753439,-2000.0,0.00024963,30]
[323531962,1714073753468,-1000.0,0.00024963,60]
[323531963,1714073753492,-2000.0,0.00024963,30]
[323531964,1714073753517,-2000.0,0.00024963,30]
[323531965,1714073753543,-2000.0,0.00024963,30]
[323531966,1714073753568,-2000.0,0.00024963,30]
[323531967,1714073753593,-1000.0,0.00024963,30]
[323531968,1714073753618,-1000.0,0.00024963,30]
[323531969,1714073753644,-1000.0,0.00024963,120]
[323531970,1714073753671,-1000.0,0.00024963,120]
[323531971,1714073753696,-966.0,0.00024963,30]
[323531972,1714073753720,-1000.0,0.00024963,60]
[323531973,1714073753745,-1000.0,0.00024963,60]
[323531974,1714073753770,-1000.0,0.00024963,30]
[323531975,1714073753795,-1000.0,0.00024963,30]
[323531976,1714073753820,-1000.0,0.00024963,60]
[323531977,1714073753844,-1000.0,0.00024963,60]
[323531978,1714073753868,-1000.0,0.00024963,30]
[323531979,1714073753892,-1000.0,0.00024963,120]
[323531980,1714073753919,-1000.0,0.00024963,30]
[323531981,1714073753943,-1000.0,0.00024963,30]
[323531982,1714073753968,-1000.0,0.00024963,60]
[323531983,1714073753991,-1000.0,0.00024963,30]
[323531984,1714073754016,-1000.0,0.00024963,30]
[323531985,1714073754042,-1000.0,0.00024963,60]
[323531986,1714073754069,-1000.0,0.00024963,60]
[323531987,1714073754093,-1000.0,0.00024963,60]
[323531988,1714073754119,-188.0,0.00024963,30]
[323531989,1714073754142,-188.0,0.00024963,30]
[323531990,1714073754166,-188.0,0.00024963,30]
[323531991,1714073754190,-200.0,0.00024963,30]
[323531992,1714073754215,-176.0,0.00024963,30]
[323531993,1714073754239,-1000.0,0.00024963,30]
[323531994,1714073754264,-200.0,0.00024963,30]
[323531995,1714073754288,-176.0,0.00024963,30]
[323531996,1714073754312,-1000.0,0.00024963,30]
[323531997,1714073754337,-1000.0,0.00024963,30]
[323531998,1714073754363,-1000.0,0.00024963,30]
[323531999,1714073754391,-1000.0,0.00024963,30]
[323532000,1714073754417,-1062.22,0.00024963,120]
[323532001,1714073754441,-477.15084492,0.00024963,30]
[323532002,1714073754467,-356.61070449,0.00024963,30]
[323532003,1714073754491,-824.23524347,0.00024963,30]
[323532004,1714073754516,-2201.75038767,0.00024963,30]
[323532005,1714073754543,-368.28107838,0.00024963,120]
[323532006,1714073754568,-1814.62922888,0.00024963,30]
[323532007,1714073754592,-690.20857017,0.00024963,30]
[323532008,1714073754616,-675.5696612,0.00024963,10]
[323532009,1714073754640,-166.91605835,0.00024963,120]
[323532010,1714073754665,-639.62295263,0.00024963,10]
[323532011,1714073754689,-2500.0,0.00024963,30]
[323532012,1714073754714,-3049.0,0.00024963,10]
[323532013,1714073754740,-518.26362395,0.00024963,120]
[323532014,1714073754766,-255.31402548,0.00024963,30]
[323532015,1714073754790,-363.91938945,0.00024963,30]
[323532016,1714073754814,-935.3809594,0.00024963,120]
[323532017,1714073754839,-509.30165007,0.00024963,7]
[323532018,1714073754863,-807.33966632,0.00024963,30]
[323532019,1714073754886,-300.0,0.00024963,15]
[323532020,1714073754910,-1335.35504433,0.00024963,120]
[323532021,1714073754934,-815.06175195,0.00024963,30]
[323532022,1714073754958,-397.78972996,0.00024963,7]
[323532023,1714073754982,-651.72741956,0.00024963,30]
[323532024,1714073755007,-1199.55454858,0.00024963,120]
[323532025,1714073755030,-686.19038681,0.00024963,60]
[323532026,1714073755054,-195.02315599,0.00024963,30]
[323532027,1714073755077,-906.98758542,0.00024963,30]
[323532028,1714073755104,-193.12027637,0.00024963,15]
[323532029,1714073755131,-2143.470922,0.00024963,10]
[323532030,1714073755157,-1043.0895419,0.00024963,120]
[323532031,1714073755183,-329.00877125,0.00024963,30]
[323532032,1714073755209,-828.12017707,0.00024963,10]
[323532033,1714073755236,-1000.0,0.00024963,10]
[323532034,1714073755261,-689.97707452,0.00024963,30]
[323532035,1714073755286,-500.0,0.00024963,10]
[323532036,1714073755310,-212.53524123,0.00024963,120]
[323532037,1714073755337,-2822.87019325,0.00024963,120]
[323532038,1714073755523,-1291.7638017,0.00024963,15]
[323532039,1714073755556,-408.55105168,0.00024963,30]
[323532040,1714073755581,-154.78372256,0.00024963,120]
[323532041,1714073755607,-1159.98419419,0.00024963,30]
[323532042,1714073755632,-339.50641599,0.00024963,120]
[323532043,1714073755656,-355.74761937,0.00024963,30]
[323532044,1714073755681,-548.85577573,0.00024963,120]
[323532045,1714073755706,-1159.86181698,0.00024963,120]
[323532046,1714073755731,-1046.72603956,0.00024963,30]
[323532047,1714073755756,-37730.33419513,0.00024963,7]
[323532048,1714073755781,-255.21434012,0.00024963,30]
[323532049,1714073755807,-1070.39920802,0.00024963,7]
[323532050,1714073755832,-4997.51590803,0.00024963,30]
[323532051,1714073755857,-834.27724755,0.00024963,30]
[323532052,1714073755881,-2417.92149708,0.00024963,30]
[323532053,1714073755905,-263.07986736,0.00024963,10]
[323532054,1714073755929,-933.5129844,0.00024963,120]
[323532055,1714073755955,-190.69495027,0.00024963,30]
[323532056,1714073755980,-275.0,0.00024963,14]
[323532057,1714073756004,-279.12460066,0.00024963,120]
[323532058,1714073756032,-1183.424759,0.00024963,30]
[323532059,1714073756057,-869.81701556,0.00024963,7]
[323532060,1714073756085,-1272.34405493,0.00024963,120]
[323532061,1714073756111,-228.48211119,0.00024963,120]
[323532062,1714073756136,-1638.70930305,0.00024963,120]
[323532063,1714073756160,-249.77245943,0.00024963,30]
[323532064,1714073756183,-1322.12678015,0.00024963,30]
[323532065,1714073756207,-969.0387592,0.00024963,120]
[323532066,1714073756232,-865.29808518,0.00024963,120]
[323532067,1714073756255,-685.74756885,0.00024963,30]
[323532068,1714073756279,-268.96091336,0.00024963,120]
[323532069,1714073756303,-466.91648978,0.00024963,120]
[323532070,1714073756328,-659.74604401,0.00024963,30]
[323532071,1714073756352,-1373.43664766,0.00024963,30]
[323532072,1714073756378,-1079.62371227,0.00024963,30]
[323532073,1714073756403,-208.39979362,0.00024963,7]
[323532074,1714073756427,-1051.71012853,0.00024963,30]
[323532075,1714073756453,-2044.42099896,0.00024963,30]
[323532076,1714073756480,-1129.56324362,0.00024963,120]
[323532077,1714073756505,-1000.0,0.00024963,30]
[323532078,1714073756529,-1000.0,0.00024963,30]
[323532079,1714073756554,-1000.0,0.00024963,30]
[323532080,1714073756579,-1000.0,0.00024963,30]
[323532081,1714073756603,-1000.0,0.00024963,30]
[323532082,1714073756628,-1000.0,0.00024963,30]
[323532083,1714073756653,-1000.0,0.00024963,30]
[323532084,1714073756678,-1000.0,0.00024963,30]
[323532085,1714073756704,-1000.0,0.00024963,30]
[323532086,1714073756729,-1000.0,0.00024963,30]
[323532087,1714073756756,-1000.0,0.00024963,30]
[323532088,1714073756783,-1000.0,0.00024963,30]
[323532089,1714073756808,-1000.0,0.00024963,30]
[323532090,1714073756834,-1000.0,0.00024963,30]
[323532091,1714073756858,-1000.0,0.00024963,30]
[323532092,1714073756883,-1000.0,0.00024963,30]
[323532093,1714073756907,-1000.0,0.00024963,30]
[323532094,1714073756931,-1000.0,0.00024963,30]
[323532095,1714073756955,-1000.0,0.00024963,30]
[323532096,1714073756980,-1000.0,0.00024963,30]
[323532097,1714073757004,-1000.0,0.00024963,30]
[323532098,1714073757028,-1000.0,0.00024963,30]
[323532099,1714073757053,-1000.0,0.00024963,30]
[323532100,1714073757077,-1000.0,0.00024963,30]
[323532101,1714073757102,-1000.0,0.00024963,30]
[323532102,1714073757126,-1000.0,0.00024963,30]
[323532103,1714073757150,-1000.0,0.00024963,30]
[323532104,1714073757174,-1000.0,0.00024963,30]
[323532105,1714073757198,-1000.0,0.00024963,30]
[323532106,1714073757223,-1000.0,0.00024963,30]
[323532107,1714073757247,-1000.0,0.00024963,30]
[323532108,1714073757271,-1000.0,0.00024963,30]
[323532109,1714073757295,-1000.0,0.00024963,30]
[323532110,1714073757319,-1000.0,0.00024963,30]
[323532111,1714073757344,-350.15980402,0.00024963,30]
[323532112,1714073757371,-500.0,0.00024963,30]
[323532113,1714073757396,-500.0,0.00024963,30]
[323532114,1714073757420,-627.0,0.00024963,30]
[323532115,1714073757445,-2276.78623287,0.00024963,30]
[323532116,1714073757472,-1317.37537347,0.00024963,30]
[323532117,1714073757498,-3128.07883637,0.00024963,30]
[323532118,1714073757525,-2193.08985292,0.00024963,30]
[323532119,1714073757552,-3315.59771611,0.00024963,29]
[323532120,1714073757578,-3205.15467721,0.00024963,120]
[323532121,1714073757603,-876.5073968,0.00024963,30]
[323532122,1714073757627,-1000.0,0.00024963,31]
[323532123,1714073757652,-970.0,0.00024963,30]
[323532124,1714073757676,-514.13920604,0.00024963,10]
[323532125,1714073757701,-636.45826758,0.00024963,90]
[323532126,1714073757727,-925.44072445,0.00024963,120]
[323532127,1714073757751,-2486.6483,0.00024963,30]
[323532128,1714073757776,-1349.6923115,0.00024963,30]
[323532129,1714073757799,-1363.2743136,0.00024963,30]
[323532130,1714073757823,-513.0,0.00024963,30]
[323532131,1714073757847,-2217.0,0.00024963,30]
[323532132,1714073757871,-990.21341733,0.00024963,120]
[323532133,1714073757895,-152.9232565,0.00024963,30]
[323532134,1714073757919,-1000.0,0.00024963,30]
[323532135,1714073757943,-1000.0,0.00024963,30]
[323532136,1714073757968,-1000.0,0.00024963,30]
[323532137,1714073757992,-1055.84630352,0.00024963,30]
[323532138,1714073758016,-1000.0,0.00024963,30]
[323532139,1714073758040,-1000.0,0.00024963,30]
[323532140,1714073758064,-1000.0,0.00024963,30]
[323532141,1714073758088,-1000.0,0.00024963,30]
[323532142,1714073758112,-1000.0,0.00024963,30]
[323532143,1714073758293,-1148.3097326,0.00024963,30]
[323532144,1714073758318,-2204.9669871,0.00024963,30]
[323532145,1714073758343,-207.50008357,0.00024963,30]
[323532146,1714073758369,-866.37013697,0.00024963,120]
[323532147,1714073758394,-93782.99671,0.00024963,7]
[323532148,1714073758421,-2000.0,0.00024963,120]
[323532149,1714073758447,-18072.9578325,0.00024963,90]
[323532150,1714073758473,-14867.8,0.00024963,30]
[323532151,1714073758497,-1122.71878788,0.00024963,120]
[323532152,1714073758522,-221.67544764,0.00024963,7]
[323532153,1714073758547,-5002.29876997,0.00024963,10]
[323532154,1714073758571,-174.0,0.00024963,120]
[323532155,1714073758596,-418.25884088,0.00024963,30]
[323532156,1714073758621,-709.0,0.00024963,30]
[323532157,1714073758646,-2580.0,0.00024963,30]
[323532158,1714073758672,-1033.0,0.00024963,10]
[323532159,1714073758700,-1033.0,0.00024963,10]
[323532160,1714073758724,-1033.0,0.00024963,10]
[323532161,1714073758749,-1033.0,0.00024963,10]
[323532162,1714073758774,-1033.0,0.00024963,10]
[323532163,1714073758798,-1033.0,0.00024963,10]
[323532164,1714073758822,-1033.0,0.00024963,10]
[323532165,1714073758846,-1033.0,0.00024963,10]
[323532166,1714073758871,-1033.0,0.00024963,10]
[323532167,1714073758896,-1033.0,0.00024963,10]
[323532168,1714073758923,-1033.0,0.00024963,10]
[323532169,1714073758949,-1078.56909786,0.00024963,10]
[323532170,1714073758974,-1000.0,0.00024963,30]
[323532171,1714073758999,-1000.0,0.00024963,30]
[323532172,1714073759023,-1000.0,0.00024963,30]
[323532173,1714073759047,-1000.0,0.00024963,30]
[323532174,1714073759071,-1000.0,0.00024963,30]
[323532175,1714073759096,-1000.0,0.00024963,30]
[323532176,1714073759121,-1000.0,0.00024963,30]
[323532177,1714073759147,-1000.0,0.00024963,30]
[323532178,1714073759171,-1000.0,0.00024963,30]
[323532179,1714073759195,-1000.0,0.00024963,30]
[323532180,1714073759220,-1000.0,0.00024963,30]
[323532181,1714073759244,-1000.0,0.00024963,30]
[323532182,1714073759268,-1000.0,0.00024963,30]
[323532183,1714073759291,-1000.0,0.00024963,30]
[323532184,1714073759315,-1000.0,0.00024963,30]
[323532185,1714073759339,-1000.0,0.00024963,30]
[323532186,1714073759366,-1000.0,0.00024963,30]
[323532187,1714073759391,-1000.0,0.00024963,30]
[323532188,1714073759415,-1000.0,0.00024963,30]
[323532189,1714073759441,-1000.0,0.00024963,30]
[323532190,1714073759466,-1000.0,0.00024963,30]
[323532191,1714073759491,-1000.0,0.00024963,30]
[323532192,1714073759519,-1000.0,0.00024963,30]
[323532193,1714073759545,-1000.0,0.00024963,30]
[323532194,1714073759569,-1000.0,0.00024963,30]
[323532195,1714073759594,-1000.0,0.00024963,30]
[323532196,1714073759618,-1000.0,0.00024963,30]
[323532197,1714073759643,-1705.082716,0.00024963,30]
[323532198,1714073759668,-200.0,0.00024963,30]
[323532199,1714073759694,-395.698872,0.00024963,30]
[323532200,1714073759720,-953.199514,0.00024963,30]
[323532201,1714073777657,-2960.61,0.0001337,10]
[323532202,1714073777894,-2960.61,0.00017853,10]
[323532203,1714073777939,-1530.0,0.000193,7]
[323532204,1714073777967,-150.5,0.0001957,15]
[323532205,1714073777993,-246.52,0.0001957,7]
[323532206,1714073778018,-150.5,0.0001957,15]
[323532207,1714073778044,-150.5,0.0001958,15]
[323532208,1714073778069,-150.5,0.0001958,7]
[323532209,1714073778095,-150.5,0.0001958,15]
[323532210,1714073778120,-268.78,0.0001958,15]
[323532211,1714073778145,-150.5,0.0001959,15]
[323532212,1714073778170,-150.5,0.0001959,7]
[323532213,1714073778195,-181.59,0.0001959,15]
[323532214,1714073778221,-150.5,0.0001959,15]
[323532215,1714073778246,-150.5,0.0001959,15]
[323532216,1714073778272,-1530.0,0.000198,7]
[323532217,1714073778305,-258.65415122,0.0002,30]
[323532218,1714073778331,-267.31478945,0.0002,30]
[323532219,1714073778359,-1530.0,0.000203,8]
[323532220,1714073778390,-152.0,0.00020484,7]
[323532221,1714073778416,-1530.0,0.000208,8]
[323532222,1714073778444,-152.0,0.00021027,8]
[323532223,1714073778471,-1530.0,0.000213,9]
[323532224,1714073778499,-152.0,0.00021569,9]
[323532225,1714073778526,-2712.683377,0.000218,9]
[323532226,1714073778563,-152.0,0.00022112,10]